{"text_format":"1","workbook":"xlsx","n_sheets":1,"sheets":["نسخة_من__subandclass"],"not_rendered":{"charts":0,"images":0,"macros":1,"external_links":0,"defined_names":2,"comments":0,"pivot_tables":0},"unopened":[],"bounds":{"document_bytes":16777216,"sheet_cells":100000,"rows_first":2000,"rows_last":500,"rows_between":2000,"halvings":0,"cell_chars":16384,"cell_head_chars":4096},"cells_cut":0,"cells_raw":0,"read":"whole","date_system":"1900"}

{"sheet":"نسخة_من__subandclass","index":0,"n_rows":166,"n_cols":8,"rows_kept":166,"cut":false,"hidden":false,"merged":[]}
["stuacdid","stuname","subname"]
["39017","أيوب بن سليمان بن مأمون بنتن","فيزياء 234 الشعبة 58",null,{"$f":"Separate_col($C2,\"\\W+\\d+\",COLUMNS($E$1:E1))","v":"فيزياء 234"},{"$f":"Separate_col($C2,\"\\W+\\d+\",COLUMNS($E$1:F1))","v":" الشعبة 58"},null," =Separate_col($C2,\"\\W+\\d+\",COLUMNS($E$1:F1))"]
["39017","أيوب بن سليمان بن مأمون بنتن","إنجليزي 3 الشعبة 5",null,{"$f":"Separate_col($C3,\"\\W+\\d+\",COLUMNS($E$1:E2))","v":"إنجليزي 3"},{"$f":"Separate_col($C3,\"\\W+\\d+\",COLUMNS($E$1:F2))","v":" الشعبة 5"}]
["39017","أيوب بن سليمان بن مأمون بنتن","اللغة العربية 3 الشعبة 5",null,{"$f":"Separate_col($C4,\"\\W+\\d+\",COLUMNS($E$1:E3))","v":"اللغة العربية 3"},{"$f":"Separate_col($C4,\"\\W+\\d+\",COLUMNS($E$1:F3))","v":" الشعبة 5"}]
["39017","أيوب بن سليمان بن مأمون بنتن","اجتماعيات الشعبة 5",null,{"$f":"Separate_col($C5,\"\\W+\\d+\",COLUMNS($E$1:E4))","v":"اجتماعيات الشعبة 5"},{"$f":"Separate_col($C5,\"\\W+\\d+\",COLUMNS($E$1:F4))","v":"N/A"}]
["39017","أيوب بن سليمان بن مأمون بنتن","تفسير 1 الشعبة 5",null,{"$f":"Separate_col($C6,\"\\W+\\d+\",COLUMNS($E$1:E5))","v":"تفسير 1"},{"$f":"Separate_col($C6,\"\\W+\\d+\",COLUMNS($E$1:F5))","v":" الشعبة 5"}]
["39018","بدر بن بسام بن مطلق الحميداني المطيري","إنجليزي 3 الشعبة 1",null,{"$f":"Separate_col($C7,\"\\W+\\d+\",COLUMNS($E$1:E6))","v":"إنجليزي 3"},{"$f":"Separate_col($C7,\"\\W+\\d+\",COLUMNS($E$1:F6))","v":" الشعبة 1"}]
["39018","بدر بن بسام بن مطلق الحميداني المطيري","فقه 1 الشعبة 1",null,{"$f":"Separate_col($C8,\"\\W+\\d+\",COLUMNS($E$1:E7))","v":"فقه 1"},{"$f":"Separate_col($C8,\"\\W+\\d+\",COLUMNS($E$1:F7))","v":" الشعبة 1"}]
["39018","بدر بن بسام بن مطلق الحميداني المطيري","رياضيات 3 الشعبة 1",null,{"$f":"Separate_col($C9,\"\\W+\\d+\",COLUMNS($E$1:E8))","v":"رياضيات 3"},{"$f":"Separate_col($C9,\"\\W+\\d+\",COLUMNS($E$1:F8))","v":" الشعبة 1"}]
["39018","بدر بن بسام بن مطلق الحميداني المطيري","تربية صحية وبدنية الشعبة 1",null,{"$f":"Separate_col($C10,\"\\W+\\d+\",COLUMNS($E$1:E9))","v":"تربية صحية وبدنية الشعبة 1"},{"$f":"Separate_col($C10,\"\\W+\\d+\",COLUMNS($E$1:F9))","v":"N/A"}]
["39018","بدر بن بسام بن مطلق الحميداني المطيري","اللغة العربية 3 الشعبة 1",null,{"$f":"Separate_col($C11,\"\\W+\\d+\",COLUMNS($E$1:E10))","v":"اللغة العربية 3"},{"$f":"Separate_col($C11,\"\\W+\\d+\",COLUMNS($E$1:F10))","v":" الشعبة 1"}]
["39021","جهاد بن عمرو بن راشد العمرو","فقه 1 الشعبة 1",null,{"$f":"Separate_col($C12,\"\\W+\\d+\",COLUMNS($E$1:E11))","v":"فقه 1"},{"$f":"Separate_col($C12,\"\\W+\\d+\",COLUMNS($E$1:F11))","v":" الشعبة 1"}]
["39021","جهاد بن عمرو بن راشد العمرو","كيمياء 2 الشعبة 1",null,{"$f":"Separate_col($C13,\"\\W+\\d+\",COLUMNS($E$1:E12))","v":"كيمياء 2"},{"$f":"Separate_col($C13,\"\\W+\\d+\",COLUMNS($E$1:F12))","v":" الشعبة 1"}]
["39021","جهاد بن عمرو بن راشد العمرو","تربية صحية وبدنية الشعبة 1",null,{"$f":"Separate_col($C14,\"\\W+\\d+\",COLUMNS($E$1:E13))","v":"تربية صحية وبدنية الشعبة 1"},{"$f":"Separate_col($C14,\"\\W+\\d+\",COLUMNS($E$1:F13))","v":"N/A"}]
["39021","جهاد بن عمرو بن راشد العمرو","أحياء 2 الشعبة 1",null,{"$f":"Separate_col($C15,\"\\W+\\d+\",COLUMNS($E$1:E14))","v":"أحياء 2"},{"$f":"Separate_col($C15,\"\\W+\\d+\",COLUMNS($E$1:F14))","v":" الشعبة 1"}]
["39026","تركي بن فهد بن علي المالكي","إنجليزي 3 الشعبة 1",null,{"$f":"Separate_col($C16,\"\\W+\\d+\",COLUMNS($E$1:E15))","v":"إنجليزي 3"},{"$f":"Separate_col($C16,\"\\W+\\d+\",COLUMNS($E$1:F15))","v":" الشعبة 1"}]
["39026","تركي بن فهد بن علي المالكي","فقه 1 الشعبة 1",null,{"$f":"Separate_col($C17,\"\\W+\\d+\",COLUMNS($E$1:E16))","v":"فقه 1"},{"$f":"Separate_col($C17,\"\\W+\\d+\",COLUMNS($E$1:F16))","v":" الشعبة 1"}]
["39026","تركي بن فهد بن علي المالكي","كيمياء 2 الشعبة 1",null,{"$f":"Separate_col($C18,\"\\W+\\d+\",COLUMNS($E$1:E17))","v":"كيمياء 2"},{"$f":"Separate_col($C18,\"\\W+\\d+\",COLUMNS($E$1:F17))","v":" الشعبة 1"}]
["39026","تركي بن فهد بن علي المالكي","تربية صحية وبدنية الشعبة 1"]
["39026","تركي بن فهد بن علي المالكي","أحياء 2 الشعبة 1"]
["39029","جهاد بن محمد بن جاسم الصالح","حاسب 2 الشعبة 5"]
["39029","جهاد بن محمد بن جاسم الصالح","فيزياء 2 الشعبة 5"]
["39029","جهاد بن محمد بن جاسم الصالح","اللغة العربية 3 الشعبة 5"]
["39029","جهاد بن محمد بن جاسم الصالح","اجتماعيات الشعبة 5"]
["39029","جهاد بن محمد بن جاسم الصالح","رياضيات 3 الشعبة 5"]
["39041","خالد بن عبدالعزيز بن علي العميرين","رياضيات 3 الشعبة 6"]
["39041","خالد بن عبدالعزيز بن علي العميرين","تفسير 1 الشعبة 6"]
["39041","خالد بن عبدالعزيز بن علي العميرين","إنجليزي 3 الشعبة 6"]
["39041","خالد بن عبدالعزيز بن علي العميرين","اجتماعيات الشعبة 6"]
["39041","خالد بن عبدالعزيز بن علي العميرين","حاسب 2 الشعبة 6"]
["39073","سعود بن عبدالله بن سعود العبيد","إنجليزي 3 الشعبة 1"]
["39073","سعود بن عبدالله بن سعود العبيد","فقه 1 الشعبة 1"]
["39073","سعود بن عبدالله بن سعود العبيد","كيمياء 2 الشعبة 1"]
["39073","سعود بن عبدالله بن سعود العبيد","تربية صحية وبدنية الشعبة 1"]
["39073","سعود بن عبدالله بن سعود العبيد","أحياء 2 الشعبة 1"]
["39074","سعيد بن أحمد بن سعيد باصقر","تربية صحية وبدنية الشعبة 3"]
["39074","سعيد بن أحمد بن سعيد باصقر","إنجليزي 3 الشعبة 3"]
["39074","سعيد بن أحمد بن سعيد باصقر","رياضيات 3 الشعبة 3"]
["39074","سعيد بن أحمد بن سعيد باصقر","فقه 1 الشعبة 3"]
["39074","سعيد بن أحمد بن سعيد باصقر","اللغة العربية 3 الشعبة 3"]
["39082","عبدالرحمن بن ياسر بن فهد بن عبدالرحمن العليان","فقه 1 الشعبة 2"]
["39082","عبدالرحمن بن ياسر بن فهد بن عبدالرحمن العليان","رياضيات 3 الشعبة 2"]
["39082","عبدالرحمن بن ياسر بن فهد بن عبدالرحمن العليان","اللغة العربية 3 الشعبة 2"]
["39082","عبدالرحمن بن ياسر بن فهد بن عبدالرحمن العليان","تربية صحية وبدنية الشعبة 2"]
["39082","عبدالرحمن بن ياسر بن فهد بن عبدالرحمن العليان","إنجليزي 3 الشعبة 2"]
["39099","عبدالرحمن بن علي بن حسين الخياصي الغامدي","رياضيات 3 الشعبة 7"]
["39099","عبدالرحمن بن علي بن حسين الخياصي الغامدي","تفسير 1 الشعبة 7"]
["39099","عبدالرحمن بن علي بن حسين الخياصي الغامدي","حاسب 2 الشعبة 7"]
["39099","عبدالرحمن بن علي بن حسين الخياصي الغامدي","فيزياء 2 الشعبة 7"]
["39099","عبدالرحمن بن علي بن حسين الخياصي الغامدي","اجتماعيات الشعبة 7"]
["39099","عبدالرحمن بن علي بن حسين الخياصي الغامدي","إنجليزي 3 الشعبة 7"]
["39107","عبدالعزيز بن سعود بن عبد العزيز المجبل","حاسب 2 الشعبة 5"]
["39107","عبدالعزيز بن سعود بن عبد العزيز المجبل","فيزياء 2 الشعبة 5"]
["39107","عبدالعزيز بن سعود بن عبد العزيز المجبل","إنجليزي 3 الشعبة 5"]
["39107","عبدالعزيز بن سعود بن عبد العزيز المجبل","اجتماعيات الشعبة 5"]
["39107","عبدالعزيز بن سعود بن عبد العزيز المجبل","رياضيات 3 الشعبة 5"]
["39109","عبدالعزيز بن عبدالله بن عبدالعزيز بوقبيع","إنجليزي 3 الشعبة 4"]
["39109","عبدالعزيز بن عبدالله بن عبدالعزيز بوقبيع","تربية صحية وبدنية الشعبة 4"]
["39109","عبدالعزيز بن عبدالله بن عبدالعزيز بوقبيع","فقه 1 الشعبة 4"]
["39109","عبدالعزيز بن عبدالله بن عبدالعزيز بوقبيع","أحياء 2 الشعبة 4"]
["39109","عبدالعزيز بن عبدالله بن عبدالعزيز بوقبيع","رياضيات 3 الشعبة 4"]
["39111","عبدالعزيز بن عبدالله بن عيسى الناصر","اللغة العربية 3 الشعبة 4"]
["39111","عبدالعزيز بن عبدالله بن عيسى الناصر","إنجليزي 3 الشعبة 4"]
["39111","عبدالعزيز بن عبدالله بن عيسى الناصر","تربية صحية وبدنية الشعبة 4"]
["39111","عبدالعزيز بن عبدالله بن عيسى الناصر","فقه 1 الشعبة 4"]
["39111","عبدالعزيز بن عبدالله بن عيسى الناصر","كيمياء 2 الشعبة 4"]
["39119","عبدالكريم بن عبدالعزيز بن عبدالكريم الرويلي","اللغة العربية 3 الشعبة 6"]
["39119","عبدالكريم بن عبدالعزيز بن عبدالكريم الرويلي","رياضيات 3 الشعبة 6"]
["39119","عبدالكريم بن عبدالعزيز بن عبدالكريم الرويلي","فيزياء 2 الشعبة 6"]
["39119","عبدالكريم بن عبدالعزيز بن عبدالكريم الرويلي","إنجليزي 3 الشعبة 6"]
["39119","عبدالكريم بن عبدالعزيز بن عبدالكريم الرويلي","اجتماعيات الشعبة 6"]
["39119","عبدالكريم بن عبدالعزيز بن عبدالكريم الرويلي","حاسب 2 الشعبة 6"]
["39126","عبدالله بن حسن بن عبدالله الشيباني","فقه 1 الشعبة 2"]
["39126","عبدالله بن حسن بن عبدالله الشيباني","رياضيات 3 الشعبة 2"]
["39126","عبدالله بن حسن بن عبدالله الشيباني","اللغة العربية 3 الشعبة 2"]
["39126","عبدالله بن حسن بن عبدالله الشيباني","تربية صحية وبدنية الشعبة 2"]
["39126","عبدالله بن حسن بن عبدالله الشيباني","إنجليزي 3 الشعبة 2"]
["39143","عبيد بن ناصر بن عبيد الغيثاني المري","فقه 1 الشعبة 1"]
["39143","عبيد بن ناصر بن عبيد الغيثاني المري","كيمياء 2 الشعبة 1"]
["39143","عبيد بن ناصر بن عبيد الغيثاني المري","تربية صحية وبدنية الشعبة 1"]
["39143","عبيد بن ناصر بن عبيد الغيثاني المري","أحياء 2 الشعبة 1"]
["39149","علي بن سالم بن بخيت الهتيلي المري","رياضيات 3 الشعبة 7"]
["39149","علي بن سالم بن بخيت الهتيلي المري","حاسب 2 الشعبة 7"]
["39149","علي بن سالم بن بخيت الهتيلي المري","فيزياء 2 الشعبة 7"]
["39149","علي بن سالم بن بخيت الهتيلي المري","اجتماعيات الشعبة 7"]
["39149","علي بن سالم بن بخيت الهتيلي المري","إنجليزي 3 الشعبة 7"]
["39155","يوسف عادل السيد الشامي","فقه 1 الشعبة 2"]
["39155","يوسف عادل السيد الشامي","رياضيات 3 الشعبة 2"]
["39155","يوسف عادل السيد الشامي","اللغة العربية 3 الشعبة 2"]
["39155","يوسف عادل السيد الشامي","تربية صحية وبدنية الشعبة 2"]
["39155","يوسف عادل السيد الشامي","إنجليزي 3 الشعبة 2"]
["39155","يوسف عادل السيد الشامي","أحياء 2 الشعبة 2"]
["39162","علي بن عادل بن محمد الشهاب","تربية صحية وبدنية الشعبة 3"]
["39162","علي بن عادل بن محمد الشهاب","كيمياء 2 الشعبة 3"]
["39162","علي بن عادل بن محمد الشهاب","إنجليزي 3 الشعبة 3"]
["39162","علي بن عادل بن محمد الشهاب","رياضيات 3 الشعبة 3"]
["39162","علي بن عادل بن محمد الشهاب","فقه 1 الشعبة 3"]
["39162","علي بن عادل بن محمد الشهاب","اللغة العربية 3 الشعبة 3"]
["39163","علي بن محمد بن حمد آل حابس","اجتماعيات الشعبة 8"]
["39163","علي بن محمد بن حمد آل حابس","إنجليزي 3 الشعبة 8"]
["39163","علي بن محمد بن حمد آل حابس","حاسب 2 الشعبة 8"]
["39163","علي بن محمد بن حمد آل حابس","رياضيات 3 الشعبة 8"]
["39163","علي بن محمد بن حمد آل حابس","اللغة العربية 3 الشعبة 8"]
["39163","علي بن محمد بن حمد آل حابس","فيزياء 2 الشعبة 8"]
["39165","عمار بن ياسر بن عبدالرزاق بلوش","اجتماعيات الشعبة 8"]
["39165","عمار بن ياسر بن عبدالرزاق بلوش","حاسب 2 الشعبة 8"]
["39165","عمار بن ياسر بن عبدالرزاق بلوش","تفسير 1 الشعبة 8"]
["39165","عمار بن ياسر بن عبدالرزاق بلوش","فيزياء 2 الشعبة 8"]
["39181","محمد بن علي بن محمد العبد العزيز","اللغة العربية 3 الشعبة 6"]
["39181","محمد بن علي بن محمد العبد العزيز","رياضيات 3 الشعبة 6"]
["39181","محمد بن علي بن محمد العبد العزيز","تفسير 1 الشعبة 6"]
["39181","محمد بن علي بن محمد العبد العزيز","فيزياء 2 الشعبة 6"]
["39181","محمد بن علي بن محمد العبد العزيز","اجتماعيات الشعبة 6"]
["39181","محمد بن علي بن محمد العبد العزيز","حاسب 2 الشعبة 6"]
["39182","فيصل بن سعد بن عيسى العنايشه الدوسري","رياضيات 3 الشعبة 7"]
["39182","فيصل بن سعد بن عيسى العنايشه الدوسري","تفسير 1 الشعبة 7"]
["39182","فيصل بن سعد بن عيسى العنايشه الدوسري","حاسب 2 الشعبة 7"]
["39182","فيصل بن سعد بن عيسى العنايشه الدوسري","فيزياء 2 الشعبة 7"]
["39182","فيصل بن سعد بن عيسى العنايشه الدوسري","اجتماعيات الشعبة 7"]
["39182","فيصل بن سعد بن عيسى العنايشه الدوسري","إنجليزي 3 الشعبة 7"]
["39194","مهند بن حبيب بن محمد النخلي","اللغة العربية 3 الشعبة 4"]
["39194","مهند بن حبيب بن محمد النخلي","إنجليزي 3 الشعبة 4"]
["39194","مهند بن حبيب بن محمد النخلي","تربية صحية وبدنية الشعبة 4"]
["39194","مهند بن حبيب بن محمد النخلي","فقه 1 الشعبة 4"]
["39194","مهند بن حبيب بن محمد النخلي","أحياء 2 الشعبة 4"]
["39213","محمد بن خالد بن محمد الاحمد المفضي","رياضيات 3 الشعبة 1"]
["39213","محمد بن خالد بن محمد الاحمد المفضي","تربية صحية وبدنية الشعبة 1"]
["39213","محمد بن خالد بن محمد الاحمد المفضي","اللغة العربية 3 الشعبة 1"]
["39213","محمد بن خالد بن محمد الاحمد المفضي","أحياء 2 الشعبة 1"]
["39223","ياسر بن خالد بن علي آل شلوه القحطاني","حاسب 2 الشعبة 5"]
["39223","ياسر بن خالد بن علي آل شلوه القحطاني","فيزياء 2 الشعبة 5"]
["39223","ياسر بن خالد بن علي آل شلوه القحطاني","إنجليزي 3 الشعبة 5"]
["39223","ياسر بن خالد بن علي آل شلوه القحطاني","اجتماعيات الشعبة 5"]
["39223","ياسر بن خالد بن علي آل شلوه القحطاني","تفسير 1 الشعبة 5"]
["39223","ياسر بن خالد بن علي آل شلوه القحطاني","رياضيات 3 الشعبة 5"]
["39226","محمد بن مريع بن يحيى ال غاصب عسيري","فقه 1 الشعبة 1"]
["39226","محمد بن مريع بن يحيى ال غاصب عسيري","كيمياء 2 الشعبة 1"]
["39226","محمد بن مريع بن يحيى ال غاصب عسيري","تربية صحية وبدنية الشعبة 1"]
["39226","محمد بن مريع بن يحيى ال غاصب عسيري","أحياء 2 الشعبة 1"]
["39249","طارق بن سليمان بن علي المانعي","اجتماعيات الشعبة 8"]
["39249","طارق بن سليمان بن علي المانعي","إنجليزي 3 الشعبة 8"]
["39249","طارق بن سليمان بن علي المانعي","حاسب 2 الشعبة 8"]
["39249","طارق بن سليمان بن علي المانعي","تفسير 1 الشعبة 8"]
["39249","طارق بن سليمان بن علي المانعي","اللغة العربية 3 الشعبة 8"]
["39273","حسين علي بن عبدالمحسن العديلي","فقه 1 الشعبة 2"]
["39273","حسين علي بن عبدالمحسن العديلي","اللغة العربية 3 الشعبة 2"]
["39273","حسين علي بن عبدالمحسن العديلي","تربية صحية وبدنية الشعبة 2"]
["39273","حسين علي بن عبدالمحسن العديلي","أحياء 2 الشعبة 2"]
["39273","حسين علي بن عبدالمحسن العديلي","كيمياء 2 الشعبة 2"]
["39282","عبدالسلام قالط بن رشيد العوفي الحربي","اللغة العربية 3 الشعبة 4"]
["39282","عبدالسلام قالط بن رشيد العوفي الحربي","إنجليزي 3 الشعبة 4"]
["39282","عبدالسلام قالط بن رشيد العوفي الحربي","فقه 1 الشعبة 4"]
["39282","عبدالسلام قالط بن رشيد العوفي الحربي","أحياء 2 الشعبة 4"]
["39282","عبدالسلام قالط بن رشيد العوفي الحربي","كيمياء 2 الشعبة 4"]
["39282","عبدالسلام قالط بن رشيد العوفي الحربي","رياضيات 3 الشعبة 4"]
["39284","وليد بن حمدان بن ختلان الفايدي الشمري","فقه 1 الشعبة 1"]
["39284","وليد بن حمدان بن ختلان الفايدي الشمري","رياضيات 3 الشعبة 1"]
["39284","وليد بن حمدان بن ختلان الفايدي الشمري","كيمياء 2 الشعبة 1"]
["39284","وليد بن حمدان بن ختلان الفايدي الشمري","اللغة العربية 3 الشعبة 1"]
["39284","وليد بن حمدان بن ختلان الفايدي الشمري","أحياء 2 الشعبة 1"]
["39285","عبدالله بن بندر بن قاسم الشمري","كيمياء 2 الشعبة 3"]
["39285","عبدالله بن بندر بن قاسم الشمري","أحياء 2 الشعبة 3"]
["39285","عبدالله بن بندر بن قاسم الشمري","إنجليزي 3 الشعبة 3"]
["39285","عبدالله بن بندر بن قاسم الشمري","رياضيات 3 الشعبة 3"]
["39285","عبدالله بن بندر بن قاسم الشمري","فقه 1 الشعبة 3"]
["39285","عبدالله بن بندر بن قاسم الشمري","اللغة العربية 3 الشعبة 3"]